[Event "Titled Tuesday Blitz July 26 Late 2022"]
[White "Gulecyuz, Deniz"]
[Black "Gracia Alvarez, Gerardo Antonio"]
[WhiteFideId "30921341"]
[BlackFideId "5109124"]
[WhiteElo "1923"]
[BlackElo "2139"]
[Result "1-0"]
[Round "03"]
[TimeControl "180+1"]
[Date "2022.07.27"]
[WhiteClock "0:00:34"]
[BlackClock "0:00:01"]

1. e4 {[%clk 0:03:00]}  c5 {[%clk 0:03:00]} 2. Nf3 {[%clk 0:03:00]}  Nc6 {[%clk 0:03:00]} 3. d4 {[%clk 0:03:00]}  cxd4 {[%clk 0:03:00]} 4. Nxd4 {[%clk 0:03:01]}  Nf6 {[%clk 0:03:01]} 5. Nc3 {[%clk 0:03:02]}  e5 {[%clk 0:03:01]} 6. Ndb5 {[%clk 0:03:02]}  h6 {[%clk 0:03:02]} 7. Na3 {[%clk 0:02:54]}  Bb4 {[%clk 0:02:57]} 8. Bd3 {[%clk 0:02:53]}  d5 {[%clk 0:02:47]} 9. exd5 {[%clk 0:02:53]}  Nxd5 {[%clk 0:02:46]} 10. Bd2 {[%clk 0:02:38]}  Nxc3 {[%clk 0:02:33]} 11. Bxc3 {[%clk 0:02:38]}  Bxc3+ {[%clk 0:02:29]} 12. bxc3 {[%clk 0:02:39]}  O-O {[%clk 0:02:23]} 13. O-O {[%clk 0:02:39]}  Be6 {[%clk 0:02:19]} 14. Re1 {[%clk 0:02:35]}  Rc8 {[%clk 0:02:08]} 15. Qf3 {[%clk 0:02:33]}  f5 {[%clk 0:01:39]} 16. Qh5 {[%clk 0:02:14]}  Qe7 {[%clk 0:01:28]} 17. Nc4 {[%clk 0:02:10]}  e4 {[%clk 0:01:27]} 18. Bf1 {[%clk 0:02:10]}  b5 {[%clk 0:01:11]} 19. Ne3 {[%clk 0:02:01]}  f4 {[%clk 0:01:08]} 20. Nd5 {[%clk 0:01:35]}  Qf7 {[%clk 0:00:58]} 21. Qxf7+ {[%clk 0:01:34]}  Rxf7 {[%clk 0:00:55]} 22. Nb4 {[%clk 0:01:18]}  Bf5 {[%clk 0:00:40]} 23. Nxc6 {[%clk 0:00:47]}  Rxc6 {[%clk 0:00:41]} 24. Bxb5 {[%clk 0:00:47]}  Rxc3 {[%clk 0:00:41]} 25. Ba4 {[%clk 0:00:48]}  Kh7 {[%clk 0:00:41]} 26. Bb3 {[%clk 0:00:48]}  Rd7 {[%clk 0:00:34]} 27. Rad1 {[%clk 0:00:48]}  Rxd1 {[%clk 0:00:33]} 28. Rxd1 {[%clk 0:00:48]}  e3 {[%clk 0:00:33]} 29. fxe3 {[%clk 0:00:48]}  fxe3 {[%clk 0:00:34]} 30. Re1 {[%clk 0:00:49]}  Bxc2 {[%clk 0:00:33]} 31. Rc1 {[%clk 0:00:47]}  e2 {[%clk 0:00:24]} 32. Kf2 {[%clk 0:00:46]}  e1=Q+ {[%clk 0:00:17]} 33. Kxe1 {[%clk 0:00:46]}  Rxb3 {[%clk 0:00:16]} 34. axb3 {[%clk 0:00:44]}  Bxb3 {[%clk 0:00:16]} 35. Ra1 {[%clk 0:00:44]}  Bd5 {[%clk 0:00:15]} 36. Kf2 {[%clk 0:00:44]}  Be6 {[%clk 0:00:10]} 37. Rxa7 {[%clk 0:00:44]}  Bf5 {[%clk 0:00:10]} 38. Kg3 {[%clk 0:00:44]}  Be4 {[%clk 0:00:10]} 39. Kh3 {[%clk 0:00:43]}  Bf5+ {[%clk 0:00:10]} 40. g4 {[%clk 0:00:43]}  Be4 {[%clk 0:00:11]} 41. Kg3 {[%clk 0:00:43]}  Bd3 {[%clk 0:00:10]} 42. h4 {[%clk 0:00:44]}  Bc2 {[%clk 0:00:04]} 43. Kf4 {[%clk 0:00:44]}  Kg8 {[%clk 0:00:04]} 44. g5 {[%clk 0:00:40]}  hxg5+ {[%clk 0:00:04]} 45. hxg5 {[%clk 0:00:40]}  Bg6 {[%clk 0:00:04]} 46. Ke5 {[%clk 0:00:41]}  Bh5 {[%clk 0:00:04]} 47. Ke6 {[%clk 0:00:39]}  Bg6 {[%clk 0:00:04]} 48. Ke7 {[%clk 0:00:39]}  Bf5 {[%clk 0:00:03]} 49. Ra8+ {[%clk 0:00:39]}  Kh7 {[%clk 0:00:03]} 50. Kf8 {[%clk 0:00:40]}  Kg6 {[%clk 0:00:03]} 51. Ra7 {[%clk 0:00:39]}  Kxg5 {[%clk 0:00:03]} 52. Rxg7+ {[%clk 0:00:39]}  Kf4 {[%clk 0:00:03]} 53. Kf7 {[%clk 0:00:40]}  Ke5 {[%clk 0:00:03]} 54. Rg5 {[%clk 0:00:40]}  Kf4 {[%clk 0:00:03]} 55. Kf6 {[%clk 0:00:40]}  Be4 {[%clk 0:00:03]} 56. Ra5 {[%clk 0:00:41]}  Ke3 {[%clk 0:00:03]} 57. Ke5 {[%clk 0:00:40]}  Bd3 {[%clk 0:00:04]} 58. Ra3 {[%clk 0:00:41]}  Kd2 {[%clk 0:00:03]} 59. Kd4 {[%clk 0:00:41]}  Bc2 {[%clk 0:00:03]} 60. Rh3 {[%clk 0:00:42]}  Bb1 {[%clk 0:00:02]} 61. Rh2+ {[%clk 0:00:39]}  Kc1 {[%clk 0:00:02]} 62. Kc3 {[%clk 0:00:37]}  Be4 {[%clk 0:00:01]} 63. Re2 {[%clk 0:00:34]}  Bf3 {[%clk 0:00:01]} 64. Re1+ {[%clk 0:00:34]}  Bd1 {[%clk 0:00:01]} 65. Rg1 {[%clk 0:00:34]} 1-0


[Site "https://www.chess.com"]

[Event "Titled Tuesday Blitz July 26 Late 2022"]
[White "Horcajuelo Rocamora, Martin"]
[Black "Reprintsev, Alexander"]
[WhiteFideId "24573027"]
[BlackFideId "14100541"]
[WhiteElo "1882"]
[BlackElo "2108"]
[Result "1/2-1/2"]
[Round "03"]
[TimeControl "180+1"]
[Date "2022.07.27"]
[WhiteClock "0:00:09"]
[BlackClock "0:00:44"]

1. e4 {[%clk 0:02:23]}  d5 {[%clk 0:02:43]} 2. exd5 {[%clk 0:02:19]}  Qxd5 {[%clk 0:02:44]} 3. Nc3 {[%clk 0:02:19]}  Qa5 {[%clk 0:02:44]} 4. d4 {[%clk 0:02:20]}  Nf6 {[%clk 0:02:44]} 5. Nf3 {[%clk 0:02:20]}  Nc6 {[%clk 0:02:44]} 6. Bc4 {[%clk 0:02:20]}  Bg4 {[%clk 0:02:43]} 7. Bd2 {[%clk 0:02:21]}  Qh5 {[%clk 0:02:42]} 8. Be2 {[%clk 0:02:12]}  O-O-O {[%clk 0:02:42]} 9. Be3 {[%clk 0:02:11]}  e5 {[%clk 0:02:42]} 10. d5 {[%clk 0:02:11]}  Bxf3 {[%clk 0:02:38]} 11. Bxf3 {[%clk 0:02:11]}  Qg6 {[%clk 0:02:37]} 12. Qd3 {[%clk 0:01:49]}  Qxd3 {[%clk 0:02:28]} 13. cxd3 {[%clk 0:01:50]}  Nb4 {[%clk 0:02:29]} 14. Ke2 {[%clk 0:01:50]}  Nbxd5 {[%clk 0:02:28]} 15. Nxd5 {[%clk 0:01:50]}  Nxd5 {[%clk 0:02:29]} 16. Rac1 {[%clk 0:01:38]}  b6 {[%clk 0:02:23]} 17. a3 {[%clk 0:01:36]}  f5 {[%clk 0:02:22]} 18. Rc6 {[%clk 0:01:33]}  f4 {[%clk 0:02:15]} 19. Bd2 {[%clk 0:01:29]}  Bc5 {[%clk 0:02:15]} 20. b4 {[%clk 0:01:27]}  Bd4 {[%clk 0:02:14]} 21. Rhc1 {[%clk 0:01:25]}  Kb8 {[%clk 0:02:12]} 22. Bxd5 {[%clk 0:01:21]}  Rxd5 {[%clk 0:02:13]} 23. Rxc7 {[%clk 0:01:22]}  g6 {[%clk 0:02:04]} 24. a4 {[%clk 0:01:17]}  h6 {[%clk 0:01:58]} 25. a5 {[%clk 0:01:16]}  Rhd8 {[%clk 0:01:56]} 26. a6 {[%clk 0:01:15]}  R5d7 {[%clk 0:01:43]} 27. R7c6 {[%clk 0:01:11]}  Rg7 {[%clk 0:01:35]} 28. b5 {[%clk 0:01:08]}  Bc5 {[%clk 0:01:33]} 29. Bc3 {[%clk 0:01:07]}  Re8 {[%clk 0:01:30]} 30. Kf3 {[%clk 0:01:07]}  g5 {[%clk 0:01:28]} 31. h3 {[%clk 0:01:07]}  h5 {[%clk 0:01:28]} 32. Ke4 {[%clk 0:01:03]}  Rge7 {[%clk 0:01:28]} 33. f3 {[%clk 0:00:56]}  Bd4 {[%clk 0:01:27]} 34. Bb4 {[%clk 0:00:48]}  Bc5 {[%clk 0:01:20]} 35. Bxc5 {[%clk 0:00:44]}  bxc5 {[%clk 0:01:21]} 36. R6xc5 {[%clk 0:00:44]}  Rd7 {[%clk 0:01:21]} 37. Rd5 {[%clk 0:00:43]}  Rxd5 {[%clk 0:01:19]} 38. Kxd5 {[%clk 0:00:43]}  Rd8+ {[%clk 0:01:19]} 39. Kxe5 {[%clk 0:00:44]}  Rxd3 {[%clk 0:01:19]} 40. Rc2 {[%clk 0:00:43]}  Rb3 {[%clk 0:01:18]} 41. Rc5 {[%clk 0:00:32]}  Rb2 {[%clk 0:01:18]} 42. Kd6 {[%clk 0:00:33]}  Rxg2 {[%clk 0:01:17]} 43. Kc6 {[%clk 0:00:33]}  g4 {[%clk 0:01:04]} 44. hxg4 {[%clk 0:00:26]}  hxg4 {[%clk 0:01:04]} 45. fxg4 {[%clk 0:00:27]}  Rxg4 {[%clk 0:01:03]} 46. Rf5 {[%clk 0:00:24]}  Rg6+ {[%clk 0:01:03]} 47. Kc5 {[%clk 0:00:25]}  Rg4 {[%clk 0:01:02]} 48. Rf6 {[%clk 0:00:23]}  Rg8 {[%clk 0:00:52]} 49. Rxf4 {[%clk 0:00:22]}  Rc8+ {[%clk 0:00:53]} 50. Kb4 {[%clk 0:00:20]}  Ka8 {[%clk 0:00:53]} 51. Rf7 {[%clk 0:00:20]}  Rd8 {[%clk 0:00:53]} 52. Kc5 {[%clk 0:00:19]}  Kb8 {[%clk 0:00:53]} 53. Kc6 {[%clk 0:00:19]}  Rc8+ {[%clk 0:00:53]} 54. Kd6 {[%clk 0:00:19]}  Rd8+ {[%clk 0:00:53]} 55. Rd7 {[%clk 0:00:12]}  Rh8 {[%clk 0:00:53]} 56. Re7 {[%clk 0:00:11]}  Rg8 {[%clk 0:00:53]} 57. Kd7 {[%clk 0:00:10]}  Rc8 {[%clk 0:00:49]} 58. Re6 {[%clk 0:00:08]}  Rc7+ {[%clk 0:00:48]} 59. Kd8 {[%clk 0:00:08]}  Rc5 {[%clk 0:00:47]} 60. b6 {[%clk 0:00:07]}  Rd5+ {[%clk 0:00:46]} 61. Ke7 {[%clk 0:00:06]}  axb6 {[%clk 0:00:44]} 62. Rxb6+ {[%clk 0:00:07]}  Ka7 {[%clk 0:00:45]} 63. Rd6 {[%clk 0:00:08]}  Rxd6 {[%clk 0:00:44]} 64. Kxd6 {[%clk 0:00:09]}  Kxa6 {[%clk 0:00:44]} 1/2-1/2


[Site "https://www.chess.com"]

[Event "Titled Tuesday Blitz July 26 Late 2022"]
[White "Jin, Ashton"]
[Black "Yuan, Qingyu"]
[WhiteFideId "30931908"]
[BlackFideId "8609772"]
[WhiteElo "2486"]
[BlackElo "2359"]
[Result "0-1"]
[Round "03"]
[TimeControl "180+1"]
[Date "2022.07.27"]
[WhiteClock "0:00:02"]
[BlackClock "0:00:19"]

1. e4 {[%clk 0:03:00]}  c6 {[%clk 0:03:00]} 2. Nc3 {[%clk 0:03:00]}  d5 {[%clk 0:03:00]} 3. Nf3 {[%clk 0:03:01]}  dxe4 {[%clk 0:03:01]} 4. Nxe4 {[%clk 0:03:01]}  Nf6 {[%clk 0:03:02]} 5. Qe2 {[%clk 0:03:01]}  Nxe4 {[%clk 0:03:02]} 6. Qxe4 {[%clk 0:03:02]}  Nd7 {[%clk 0:03:03]} 7. Bc4 {[%clk 0:03:01]}  Nf6 {[%clk 0:03:04]} 8. Ne5 {[%clk 0:03:02]}  e6 {[%clk 0:03:04]} 9. Qe2 {[%clk 0:03:01]}  b5 {[%clk 0:03:05]} 10. Bd3 {[%clk 0:03:01]}  Qc7 {[%clk 0:03:05]} 11. a4 {[%clk 0:02:59]}  Bd6 {[%clk 0:03:02]} 12. Nxc6 {[%clk 0:02:49]}  b4 {[%clk 0:03:02]} 13. Nd4 {[%clk 0:02:41]}  a6 {[%clk 0:03:02]} 14. Nf5 {[%clk 0:02:40]}  Bb7 {[%clk 0:03:02]} 15. Nxd6+ {[%clk 0:02:19]}  Qxd6 {[%clk 0:03:02]} 16. O-O {[%clk 0:02:19]}  h5 {[%clk 0:03:02]} 17. f4 {[%clk 0:02:09]}  h4 {[%clk 0:02:27]} 18. h3 {[%clk 0:01:53]}  Nh5 {[%clk 0:02:19]} 19. Qe3 {[%clk 0:01:43]}  Ng3 {[%clk 0:02:00]} 20. Rf2 {[%clk 0:01:38]}  O-O {[%clk 0:01:54]} 21. b3 {[%clk 0:01:35]}  Nf5 {[%clk 0:01:46]} 22. Qe5 {[%clk 0:01:21]}  Qc6 {[%clk 0:01:27]} 23. Bxf5 {[%clk 0:00:56]}  exf5 {[%clk 0:01:26]} 24. Bb2 {[%clk 0:00:57]}  Qg6 {[%clk 0:01:11]} 25. Qe7 {[%clk 0:00:56]}  Bd5 {[%clk 0:01:07]} 26. Qxb4 {[%clk 0:00:52]}  Rfe8 {[%clk 0:01:05]} 27. Be5 {[%clk 0:00:38]}  f6 {[%clk 0:01:00]} 28. Bc3 {[%clk 0:00:28]}  Re4 {[%clk 0:00:41]} 29. Qd6 {[%clk 0:00:27]}  Qf7 {[%clk 0:00:38]} 30. Rff1 {[%clk 0:00:19]}  Rae8 {[%clk 0:00:37]} 31. Rf2 {[%clk 0:00:17]}  Bb7 {[%clk 0:00:36]} 32. Raf1 {[%clk 0:00:16]}  Kh7 {[%clk 0:00:36]} 33. Qd3 {[%clk 0:00:14]}  Qg6 {[%clk 0:00:36]} 34. Kh2 {[%clk 0:00:13]}  R8e6 {[%clk 0:00:34]} 35. Bb2 {[%clk 0:00:12]}  Qh5 {[%clk 0:00:35]} 36. Bc3 {[%clk 0:00:12]}  a5 {[%clk 0:00:34]} 37. Bxa5 {[%clk 0:00:12]}  Ba6 {[%clk 0:00:35]} 38. c4 {[%clk 0:00:11]}  Bb7 {[%clk 0:00:35]} 39. Bc3 {[%clk 0:00:11]}  Re2 {[%clk 0:00:29]} 40. a5 {[%clk 0:00:08]}  Rxf2 {[%clk 0:00:22]} 41. Rxf2 {[%clk 0:00:09]}  Re1 {[%clk 0:00:22]} 42. Rf1 {[%clk 0:00:06]}  Re2 {[%clk 0:00:19]} 43. Rg1 {[%clk 0:00:02]}  Be4 {[%clk 0:00:19]} 44. Qd4 {[%clk 0:00:02]}  Qf3 {[%clk 0:00:19]} 0-1


[Site "https://www.chess.com"]

[Event "Titled Tuesday Blitz July 26 Late 2022"]
[White "Khripachenko, Alexander"]
[Black "Makarian, Rudik"]
[WhiteFideId "54184975"]
[BlackFideId "44105681"]
[WhiteElo "2147"]
[BlackElo "2403"]
[Result "1/2-1/2"]
[Round "03"]
[TimeControl "180+1"]
[Date "2022.07.26"]
[WhiteClock "0:00:52"]
[BlackClock "0:00:08"]

1. e4 {[%clk 0:03:00]}  Nc6 {[%clk 0:02:47]} 2. d4 {[%clk 0:02:54]}  e5 {[%clk 0:02:45]} 3. dxe5 {[%clk 0:02:45]}  Nxe5 {[%clk 0:02:46]} 4. Nf3 {[%clk 0:02:46]}  Nxf3+ {[%clk 0:02:39]} 5. Qxf3 {[%clk 0:02:46]}  d6 {[%clk 0:02:40]} 6. Bc4 {[%clk 0:02:46]}  Be6 {[%clk 0:02:39]} 7. Bxe6 {[%clk 0:02:45]}  fxe6 {[%clk 0:02:40]} 8. Nc3 {[%clk 0:02:46]}  Be7 {[%clk 0:02:38]} 9. Qg4 {[%clk 0:02:43]}  Kf7 {[%clk 0:02:37]} 10. O-O {[%clk 0:02:42]}  Nf6 {[%clk 0:02:36]} 11. Qh3 {[%clk 0:02:43]}  e5 {[%clk 0:02:34]} 12. f4 {[%clk 0:02:42]}  exf4 {[%clk 0:02:33]} 13. Bxf4 {[%clk 0:02:43]}  Qc8 {[%clk 0:02:30]} 14. Qf3 {[%clk 0:02:38]}  Qe6 {[%clk 0:02:18]} 15. Rae1 {[%clk 0:02:37]}  Rhf8 {[%clk 0:02:17]} 16. e5 {[%clk 0:02:36]}  dxe5 {[%clk 0:02:17]} 17. Rxe5 {[%clk 0:02:36]}  Qb6+ {[%clk 0:02:16]} 18. Be3 {[%clk 0:02:34]}  Qc6 {[%clk 0:02:08]} 19. Qxc6 {[%clk 0:02:27]}  bxc6 {[%clk 0:02:09]} 20. Ra5 {[%clk 0:02:27]}  Bb4 {[%clk 0:02:03]} 21. Ra6 {[%clk 0:02:24]}  Bxc3 {[%clk 0:01:49]} 22. bxc3 {[%clk 0:02:22]}  Rfe8 {[%clk 0:01:49]} 23. Bd4 {[%clk 0:02:20]}  Re6 {[%clk 0:01:43]} 24. Rxa7 {[%clk 0:02:07]}  Rxa7 {[%clk 0:01:39]} 25. Bxa7 {[%clk 0:02:07]}  Kg6 {[%clk 0:01:37]} 26. Bd4 {[%clk 0:02:06]}  Nd7 {[%clk 0:01:35]} 27. Kf2 {[%clk 0:01:56]}  c5 {[%clk 0:01:34]} 28. Be3 {[%clk 0:01:55]}  Ra6 {[%clk 0:01:33]} 29. Rd1 {[%clk 0:01:53]}  Nf6 {[%clk 0:01:27]} 30. Kf3 {[%clk 0:01:44]}  Rxa2 {[%clk 0:01:26]} 31. Bxc5 {[%clk 0:01:43]}  Rxc2 {[%clk 0:01:26]} 32. Bd4 {[%clk 0:01:43]}  Ne8 {[%clk 0:01:12]} 33. Re1 {[%clk 0:01:41]}  Kf7 {[%clk 0:01:09]} 34. Re5 {[%clk 0:01:39]}  g6 {[%clk 0:01:01]} 35. h4 {[%clk 0:01:36]}  Ra2 {[%clk 0:00:54]} 36. h5 {[%clk 0:01:35]}  Ra6 {[%clk 0:00:52]} 37. hxg6+ {[%clk 0:01:34]}  hxg6 {[%clk 0:00:53]} 38. g4 {[%clk 0:01:34]}  Re6 {[%clk 0:00:46]} 39. Rc5 {[%clk 0:01:33]}  c6 {[%clk 0:00:44]} 40. Kf4 {[%clk 0:01:32]}  Nc7 {[%clk 0:00:31]} 41. Ra5 {[%clk 0:01:31]}  Nd5+ {[%clk 0:00:19]} 42. Kg5 {[%clk 0:01:30]}  Re4 {[%clk 0:00:18]} 43. Ra7+ {[%clk 0:01:28]}  Ke6 {[%clk 0:00:19]} 44. Rg7 {[%clk 0:01:28]}  c5 {[%clk 0:00:15]} 45. Rxg6+ {[%clk 0:01:26]}  Kd7 {[%clk 0:00:14]} 46. Bh8 {[%clk 0:01:23]}  Rc4 {[%clk 0:00:14]} 47. Kh6 {[%clk 0:01:00]}  Nxc3 {[%clk 0:00:13]} 48. Bxc3 {[%clk 0:00:59]}  Rxc3 {[%clk 0:00:14]} 49. g5 {[%clk 0:00:59]}  c4 {[%clk 0:00:12]} 50. Rg7+ {[%clk 0:00:59]}  Kc6 {[%clk 0:00:12]} 51. Rg8 {[%clk 0:00:57]}  Rh3+ {[%clk 0:00:10]} 52. Kg7 {[%clk 0:00:56]}  c3 {[%clk 0:00:10]} 53. Rc8+ {[%clk 0:00:55]}  Kd5 {[%clk 0:00:08]} 54. g6 {[%clk 0:00:55]}  Kd4 {[%clk 0:00:07]} 55. Kf6 {[%clk 0:00:55]}  Rf3+ {[%clk 0:00:07]} 56. Ke7 {[%clk 0:00:51]}  Rg3 {[%clk 0:00:07]} 57. Kf7 {[%clk 0:00:50]}  Kd3 {[%clk 0:00:08]} 58. g7 {[%clk 0:00:50]}  c2 {[%clk 0:00:08]} 59. Rd8+ {[%clk 0:00:51]}  Kc3 {[%clk 0:00:07]} 60. Rc8+ {[%clk 0:00:51]}  Kd2 {[%clk 0:00:07]} 61. Rxc2+ {[%clk 0:00:51]}  Kxc2 {[%clk 0:00:07]} 62. g8=Q {[%clk 0:00:51]}  Rxg8 {[%clk 0:00:08]} 63. Kxg8 {[%clk 0:00:52]} 1/2-1/2


[Site "https://www.chess.com"]

[Event "Titled Tuesday Blitz July 26 Late 2022"]
[White "Kopczynski, Michal"]
[Black "Csonka, Balazs"]
[WhiteFideId "1124200"]
[BlackFideId "742910"]
[WhiteElo "2235"]
[BlackElo "2404"]
[Result "0-1"]
[Round "03"]
[TimeControl "180+1"]
[Date "2022.07.26"]
[WhiteClock "0:00:04"]
[BlackClock "0:00:04"]

1. e4 {[%clk 0:03:00]}  e5 {[%clk 0:03:00]} 2. Nf3 {[%clk 0:03:00]}  Nc6 {[%clk 0:03:00]} 3. Bb5 {[%clk 0:03:01]}  Nge7 {[%clk 0:02:59]} 4. O-O {[%clk 0:03:00]}  g6 {[%clk 0:02:58]} 5. c3 {[%clk 0:03:00]}  a6 {[%clk 0:02:58]} 6. Ba4 {[%clk 0:02:59]}  Bg7 {[%clk 0:02:58]} 7. d4 {[%clk 0:03:00]}  exd4 {[%clk 0:02:58]} 8. cxd4 {[%clk 0:03:01]}  b5 {[%clk 0:02:58]} 9. Bb3 {[%clk 0:03:00]}  d6 {[%clk 0:02:57]} 10. h3 {[%clk 0:02:59]}  O-O {[%clk 0:02:57]} 11. a4 {[%clk 0:02:58]}  Bb7 {[%clk 0:02:48]} 12. axb5 {[%clk 0:02:55]}  axb5 {[%clk 0:02:47]} 13. Rxa8 {[%clk 0:02:56]}  Qxa8 {[%clk 0:02:38]} 14. Nc3 {[%clk 0:02:57]}  Na5 {[%clk 0:02:22]} 15. Bc2 {[%clk 0:02:51]}  b4 {[%clk 0:02:16]} 16. Nb5 {[%clk 0:02:50]}  Qb8 {[%clk 0:01:49]} 17. Re1 {[%clk 0:02:42]}  Ba6 {[%clk 0:01:36]} 18. Bg5 {[%clk 0:02:30]}  Re8 {[%clk 0:01:09]} 19. Qa1 {[%clk 0:02:16]}  Nec6 {[%clk 0:00:46]} 20. d5 {[%clk 0:02:07]}  Bxb5 {[%clk 0:00:41]} 21. dxc6 {[%clk 0:02:06]}  Nxc6 {[%clk 0:00:41]} 22. Bb3 {[%clk 0:01:58]}  Qa8 {[%clk 0:00:33]} 23. Qc1 {[%clk 0:01:57]}  Na5 {[%clk 0:00:30]} 24. Bd5 {[%clk 0:01:46]}  c6 {[%clk 0:00:29]} 25. Ba2 {[%clk 0:01:46]}  b3 {[%clk 0:00:28]} 26. Bb1 {[%clk 0:01:46]}  Nc4 {[%clk 0:00:27]} 27. Re2 {[%clk 0:01:32]}  Qa1 {[%clk 0:00:20]} 28. Re1 {[%clk 0:01:26]}  Qxb2 {[%clk 0:00:18]} 29. Qf4 {[%clk 0:01:25]}  Na3 {[%clk 0:00:15]} 30. Qd2 {[%clk 0:00:47]}  Qxd2 {[%clk 0:00:11]} 31. Bxd2 {[%clk 0:00:47]}  b2 {[%clk 0:00:08]} 32. Ba2 {[%clk 0:00:38]}  Bd3 {[%clk 0:00:07]} 33. Bb4 {[%clk 0:00:33]}  b1=Q {[%clk 0:00:06]} 34. Bxb1 {[%clk 0:00:33]}  Nxb1 {[%clk 0:00:05]} 35. Bxd6 {[%clk 0:00:33]}  Nc3 {[%clk 0:00:03]} 36. e5 {[%clk 0:00:29]}  Ne4 {[%clk 0:00:04]} 37. Bc7 {[%clk 0:00:27]}  Nc5 {[%clk 0:00:04]} 38. Rc1 {[%clk 0:00:22]}  Ne6 {[%clk 0:00:04]} 39. Bd6 {[%clk 0:00:21]}  Be4 {[%clk 0:00:04]} 40. Nd2 {[%clk 0:00:20]}  Bd5 {[%clk 0:00:04]} 41. f3 {[%clk 0:00:18]}  Nd4 {[%clk 0:00:04]} 42. Kf2 {[%clk 0:00:17]}  Nb5 {[%clk 0:00:02]} 43. Nc4 {[%clk 0:00:12]}  Nxd6 {[%clk 0:00:01]} 44. exd6 {[%clk 0:00:11]}  Rd8 {[%clk 0:00:02]} 45. Na5 {[%clk 0:00:05]}  Bf8 {[%clk 0:00:01]} 46. Nxc6 {[%clk 0:00:04]}  Bxc6 {[%clk 0:00:02]} 47. Rxc6 {[%clk 0:00:04]}  Rxd6 {[%clk 0:00:02]} 48. Rc8 {[%clk 0:00:03]}  Re6 {[%clk 0:00:03]} 49. Kg3 {[%clk 0:00:04]}  Kg7 {[%clk 0:00:03]} 50. f4 {[%clk 0:00:04]}  h5 {[%clk 0:00:04]} 51. Kf3 {[%clk 0:00:05]}  Bd6 {[%clk 0:00:04]} 52. g4 {[%clk 0:00:05]}  hxg4+ {[%clk 0:00:04]} 53. hxg4 {[%clk 0:00:06]}  Rf6 {[%clk 0:00:05]} 54. f5 {[%clk 0:00:06]}  gxf5 {[%clk 0:00:04]} 55. gxf5 {[%clk 0:00:06]}  Rxf5+ {[%clk 0:00:04]} 56. Ke4 {[%clk 0:00:07]}  Rf6 {[%clk 0:00:05]} 57. Rc6 {[%clk 0:00:07]}  Re6+ {[%clk 0:00:05]} 58. Kf5 {[%clk 0:00:07]}  Rf6+ {[%clk 0:00:05]} 59. Kg5 {[%clk 0:00:07]}  Be7 {[%clk 0:00:04]} 60. Rxf6 {[%clk 0:00:04]}  Bxf6+ {[%clk 0:00:04]} 0-1


[Site "https://www.chess.com"]

[Event "Titled Tuesday Blitz July 26 Late 2022"]
[White "Kovacevic, Radmila"]
[Black "Krstulovic, Alex"]
[WhiteFideId "933171"]
[BlackFideId "760056"]
[WhiteElo "2157"]
[BlackElo "2244"]
[Result "1-0"]
[Round "03"]
[TimeControl "180+1"]
[Date "2022.07.27"]
[WhiteClock "0:00:10"]
[BlackClock "0:00:01"]

1. e4 {[%clk 0:03:00]}  c5 {[%clk 0:02:47]} 2. Nf3 {[%clk 0:03:00]}  e6 {[%clk 0:02:47]} 3. d4 {[%clk 0:03:00]}  cxd4 {[%clk 0:02:44]} 4. Nxd4 {[%clk 0:03:01]}  Nf6 {[%clk 0:02:44]} 5. Bd3 {[%clk 0:03:00]}  Nc6 {[%clk 0:02:44]} 6. Nxc6 {[%clk 0:03:00]}  bxc6 {[%clk 0:02:45]} 7. O-O {[%clk 0:03:00]}  d5 {[%clk 0:02:45]} 8. e5 {[%clk 0:02:53]}  Nd7 {[%clk 0:02:45]} 9. Re1 {[%clk 0:02:47]}  Qc7 {[%clk 0:02:05]} 10. Qe2 {[%clk 0:02:32]}  c5 {[%clk 0:01:58]} 11. c3 {[%clk 0:02:32]}  Bb7 {[%clk 0:01:57]} 12. Bf4 {[%clk 0:02:27]}  Be7 {[%clk 0:01:45]} 13. Bg3 {[%clk 0:02:24]}  h5 {[%clk 0:01:43]} 14. h3 {[%clk 0:02:23]}  O-O-O {[%clk 0:01:29]} 15. Ba6 {[%clk 0:02:10]}  Nb6 {[%clk 0:01:22]} 16. Na3 {[%clk 0:02:06]}  Bxa6 {[%clk 0:01:18]} 17. Qxa6+ {[%clk 0:02:04]}  Qb7 {[%clk 0:01:18]} 18. Qa5 {[%clk 0:01:49]}  Kb8 {[%clk 0:01:14]} 19. Rab1 {[%clk 0:01:42]}  d4 {[%clk 0:01:09]} 20. c4 {[%clk 0:01:25]}  d3 {[%clk 0:01:08]} 21. Rbd1 {[%clk 0:01:22]}  Rd4 {[%clk 0:01:07]} 22. b3 {[%clk 0:01:17]}  a6 {[%clk 0:00:23]} 23. Re3 {[%clk 0:01:06]}  Rhd8 {[%clk 0:00:20]} 24. Qc3 {[%clk 0:01:00]}  h4 {[%clk 0:00:19]} 25. Bh2 {[%clk 0:00:59]}  Bg5 {[%clk 0:00:18]} 26. Rexd3 {[%clk 0:00:58]}  Qe4 {[%clk 0:00:12]} 27. Rxd4 {[%clk 0:00:55]}  Rxd4 {[%clk 0:00:12]} 28. Qe1 {[%clk 0:00:49]}  Ka7 {[%clk 0:00:04]} 29. Nb1 {[%clk 0:00:42]}  Qxe1+ {[%clk 0:00:02]} 30. Rxe1 {[%clk 0:00:41]}  a5 {[%clk 0:00:03]} 31. Kf1 {[%clk 0:00:39]}  a4 {[%clk 0:00:03]} 32. Ke2 {[%clk 0:00:39]}  axb3 {[%clk 0:00:03]} 33. axb3 {[%clk 0:00:40]}  Nd7 {[%clk 0:00:02]} 34. Rd1 {[%clk 0:00:40]}  Rxd1 {[%clk 0:00:02]} 35. Kxd1 {[%clk 0:00:40]}  Nb8 {[%clk 0:00:03]} 36. f4 {[%clk 0:00:39]}  Be7 {[%clk 0:00:03]} 37. Nc3 {[%clk 0:00:39]}  Nc6 {[%clk 0:00:04]} 38. Nb5+ {[%clk 0:00:39]}  Kb6 {[%clk 0:00:04]} 39. Bg1 {[%clk 0:00:37]}  Na5 {[%clk 0:00:04]} 40. Kc2 {[%clk 0:00:37]}  Kc6 {[%clk 0:00:04]} 41. Nc3 {[%clk 0:00:36]}  Kb6 {[%clk 0:00:03]} 42. Ne4 {[%clk 0:00:36]}  Nc6 {[%clk 0:00:03]} 43. Kc3 {[%clk 0:00:35]}  Na7 {[%clk 0:00:01]} 44. b4 {[%clk 0:00:35]}  Kc6 {[%clk 0:00:01]} 45. Nxc5 {[%clk 0:00:34]}  Nc8 {[%clk 0:00:02]} 46. b5+ {[%clk 0:00:32]}  Kb6 {[%clk 0:00:01]} 47. Nxe6+ {[%clk 0:00:32]}  Ka5 {[%clk 0:00:01]} 48. Nxg7 {[%clk 0:00:31]}  Bb4+ {[%clk 0:00:01]} 49. Kb3 {[%clk 0:00:31]}  Ne7 {[%clk 0:00:02]} 50. Nh5 {[%clk 0:00:27]}  Nf5 {[%clk 0:00:01]} 51. Bf2 {[%clk 0:00:24]}  Be7 {[%clk 0:00:01]} 52. g3 {[%clk 0:00:23]}  Bd8 {[%clk 0:00:02]} 53. gxh4 {[%clk 0:00:22]}  Ng7 {[%clk 0:00:02]} 54. Bc5 {[%clk 0:00:20]}  Nxh5 {[%clk 0:00:01]} 55. Bb4+ {[%clk 0:00:19]}  Kb6 {[%clk 0:00:02]} 56. Ka4 {[%clk 0:00:20]}  Nxf4 {[%clk 0:00:01]} 57. c5+ {[%clk 0:00:20]}  Kb7 {[%clk 0:00:01]} 58. c6+ {[%clk 0:00:20]}  Kc8 {[%clk 0:00:01]} 59. Bc5 {[%clk 0:00:18]}  Nd5 {[%clk 0:00:02]} 60. Kb3 {[%clk 0:00:16]}  Bxh4 {[%clk 0:00:02]} 61. Kc4 {[%clk 0:00:16]}  Nc7 {[%clk 0:00:01]} 62. b6 {[%clk 0:00:15]}  Ne6 {[%clk 0:00:01]} 63. b7+ {[%clk 0:00:15]}  Kb8 {[%clk 0:00:02]} 64. Bd6+ {[%clk 0:00:15]}  Nc7 {[%clk 0:00:02]} 65. Kc5 {[%clk 0:00:12]}  Bd8 {[%clk 0:00:02]} 66. Kb6 {[%clk 0:00:10]}  f6 {[%clk 0:00:01]} 67. exf6 {[%clk 0:00:10]} 1-0


[Site "https://www.chess.com"]